[Event "Titled Tuesday Blitz February 15 Early 2022"]
[White "Yang, Kaiqi"]
[Black "Kamsky, Gata"]
[WhiteFideId "8604398"]
[BlackFideId "2000024"]
[WhiteElo "2373"]
[BlackElo "2645"]
[Result "1/2-1/2"]
[Round "06"]
[TimeControl "180+1"]
[Date "2022.02.15"]
[WhiteClock "0:00:10"]
[BlackClock "0:00:16"]

1. c4 {[%clk 0:03:00]}  e5 {[%clk 0:02:59]} 2. Nc3 {[%clk 0:02:56]}  Nc6 {[%clk 0:02:54]} 3. Nf3 {[%clk 0:02:55]}  Nf6 {[%clk 0:02:53]} 4. e4 {[%clk 0:02:55]}  d6 {[%clk 0:02:51]} 5. h3 {[%clk 0:02:49]}  Nd4 {[%clk 0:02:49]} 6. d3 {[%clk 0:02:48]}  c5 {[%clk 0:02:47]} 7. Be2 {[%clk 0:02:42]}  Be7 {[%clk 0:02:41]} 8. Bg5 {[%clk 0:02:38]}  O-O {[%clk 0:02:29]} 9. Bxf6 {[%clk 0:02:35]}  Bxf6 {[%clk 0:02:24]} 10. O-O {[%clk 0:02:34]}  Nxe2+ {[%clk 0:02:22]} 11. Qxe2 {[%clk 0:02:33]}  g6 {[%clk 0:02:22]} 12. Ne1 {[%clk 0:02:30]}  Bg5 {[%clk 0:02:21]} 13. Nc2 {[%clk 0:02:28]}  f5 {[%clk 0:02:21]} 14. exf5 {[%clk 0:02:25]}  gxf5 {[%clk 0:02:20]} 15. Nd5 {[%clk 0:02:23]}  f4 {[%clk 0:02:19]} 16. Ne1 {[%clk 0:02:07]}  Bf5 {[%clk 0:02:09]} 17. Nf3 {[%clk 0:02:03]}  Kh8 {[%clk 0:02:07]} 18. Kh2 {[%clk 0:02:02]}  Bh6 {[%clk 0:02:04]} 19. Rg1 {[%clk 0:02:00]}  Qd7 {[%clk 0:02:00]} 20. Nd2 {[%clk 0:01:55]}  Rf7 {[%clk 0:01:55]} 21. Ne4 {[%clk 0:01:55]}  Raf8 {[%clk 0:01:51]} 22. Qf3 {[%clk 0:01:52]}  Bg6 {[%clk 0:01:37]} 23. Rab1 {[%clk 0:01:49]}  Rf5 {[%clk 0:01:25]} 24. Qd1 {[%clk 0:01:43]}  Bh5 {[%clk 0:01:22]} 25. f3 {[%clk 0:01:33]}  Bg5 {[%clk 0:01:19]} 26. Nxg5 {[%clk 0:01:26]}  Rxg5 {[%clk 0:01:19]} 27. Nc3 {[%clk 0:01:27]}  Bg6 {[%clk 0:01:12]} 28. Ne4 {[%clk 0:01:27]}  Rh5 {[%clk 0:01:11]} 29. b4 {[%clk 0:01:26]}  b6 {[%clk 0:01:10]} 30. bxc5 {[%clk 0:01:26]}  dxc5 {[%clk 0:01:10]} 31. Qe2 {[%clk 0:01:18]}  Bf5 {[%clk 0:01:08]} 32. Nf2 {[%clk 0:01:19]}  Qg7 {[%clk 0:01:07]} 33. Ng4 {[%clk 0:01:15]}  Re8 {[%clk 0:00:58]} 34. Rge1 {[%clk 0:01:08]}  Bg6 {[%clk 0:00:54]} 35. Qb2 {[%clk 0:00:53]}  Rg5 {[%clk 0:00:52]} 36. Re2 {[%clk 0:00:52]}  h5 {[%clk 0:00:51]} 37. Nf2 {[%clk 0:00:47]}  Bf5 {[%clk 0:00:42]} 38. Ne4 {[%clk 0:00:46]}  Rg6 {[%clk 0:00:42]} 39. Rbe1 {[%clk 0:00:42]}  Rg8 {[%clk 0:00:41]} 40. Rg1 {[%clk 0:00:31]}  Kh7 {[%clk 0:00:35]} 41. a4 {[%clk 0:00:26]}  Qe7 {[%clk 0:00:27]} 42. Nf2 {[%clk 0:00:21]}  Re6 {[%clk 0:00:21]} 43. Ne4 {[%clk 0:00:14]}  Qh4 {[%clk 0:00:19]} 44. Qd2 {[%clk 0:00:13]}  Reg6 {[%clk 0:00:19]} 45. Qe1 {[%clk 0:00:12]}  Qd8 {[%clk 0:00:17]} 46. Nf2 {[%clk 0:00:11]}  Qh4 {[%clk 0:00:16]} 47. Ne4 {[%clk 0:00:10]}  Qd8 {[%clk 0:00:16]} 48. Nf2 {[%clk 0:00:10]}  Qh4 {[%clk 0:00:16]} 49. Ne4 {[%clk 0:00:10]} 1/2-1/2


[Site "https://www.chess.com"]

[Event "Titled Tuesday Blitz February 15 Early 2022"]
[White "Yuan, Qingyu"]
[Black "Poormosavi, Seyed Kian"]
[WhiteFideId "8609772"]
[BlackFideId "12585807"]
[WhiteElo "2359"]
[BlackElo "2116"]
[Result "0-1"]
[Round "06"]
[TimeControl "180+1"]
[Date "2022.02.15"]
[WhiteClock "0:00:01"]
[BlackClock "0:00:09"]

1. Nf3 {[%clk 0:03:00]}  Nf6 {[%clk 0:02:58]} 2. g3 {[%clk 0:03:00]}  b6 {[%clk 0:02:57]} 3. Bg2 {[%clk 0:03:00]}  Bb7 {[%clk 0:02:58]} 4. O-O {[%clk 0:03:00]}  g6 {[%clk 0:02:58]} 5. d3 {[%clk 0:03:01]}  Bg7 {[%clk 0:02:59]} 6. e4 {[%clk 0:03:01]}  O-O {[%clk 0:02:59]} 7. e5 {[%clk 0:03:01]}  Ne8 {[%clk 0:02:59]} 8. Nbd2 {[%clk 0:02:59]}  d6 {[%clk 0:02:59]} 9. d4 {[%clk 0:02:56]}  c5 {[%clk 0:02:59]} 10. c3 {[%clk 0:02:54]}  Nc6 {[%clk 0:02:50]} 11. e6 {[%clk 0:02:43]}  fxe6 {[%clk 0:02:45]} 12. Ng5 {[%clk 0:02:43]}  Nc7 {[%clk 0:02:45]} 13. dxc5 {[%clk 0:02:35]}  bxc5 {[%clk 0:02:37]} 14. Nxe6 {[%clk 0:02:24]}  Nxe6 {[%clk 0:02:33]} 15. Qb3 {[%clk 0:02:24]}  Qc8 {[%clk 0:02:24]} 16. Re1 {[%clk 0:02:17]}  Kf7 {[%clk 0:01:56]} 17. Nf3 {[%clk 0:00:39]}  h6 {[%clk 0:01:40]} 18. Nh4 {[%clk 0:00:28]}  c4 {[%clk 0:01:06]} 19. Qxc4 {[%clk 0:00:22]}  Nd8 {[%clk 0:00:51]} 20. Qd3 {[%clk 0:00:16]}  Bxg2 {[%clk 0:00:50]} 21. Qxg6+ {[%clk 0:00:14]}  Kg8 {[%clk 0:00:50]} 22. Kxg2 {[%clk 0:00:15]}  Qc5 {[%clk 0:00:42]} 23. Rxe6 {[%clk 0:00:10]}  Qxf2+ {[%clk 0:00:31]} 24. Kh3 {[%clk 0:00:10]}  Qf1+ {[%clk 0:00:31]} 25. Kg4 {[%clk 0:00:07]}  Nxe6 {[%clk 0:00:15]} 26. Qxe6+ {[%clk 0:00:07]}  Rf7 {[%clk 0:00:15]} 27. b3 {[%clk 0:00:03]}  Rf8 {[%clk 0:00:12]} 28. Bb2 {[%clk 0:00:02]}  Qf6 {[%clk 0:00:11]} 29. Qxf6 {[%clk 0:00:02]}  Rxf6 {[%clk 0:00:10]} 30. Kh3 {[%clk 0:00:02]}  Rf2 {[%clk 0:00:10]} 31. Ba3 {[%clk 0:00:03]}  Bxc3 {[%clk 0:00:09]} 32. Rc1 {[%clk 0:00:03]}  Bf6 {[%clk 0:00:08]} 33. Ng6 {[%clk 0:00:03]}  Rf7 {[%clk 0:00:06]} 34. Nf4 {[%clk 0:00:03]}  Rxa2 {[%clk 0:00:06]} 35. Rc8+ {[%clk 0:00:03]}  Kg7 {[%clk 0:00:06]} 36. Bc1 {[%clk 0:00:03]}  Bg5 {[%clk 0:00:06]} 37. Ne6+ {[%clk 0:00:04]}  Kf6 {[%clk 0:00:07]} 38. Nxg5 {[%clk 0:00:04]}  hxg5 {[%clk 0:00:08]} 39. Kg4 {[%clk 0:00:04]}  Rxh2 {[%clk 0:00:07]} 40. Bxg5+ {[%clk 0:00:04]}  Ke6 {[%clk 0:00:07]} 41. Bf4 {[%clk 0:00:03]}  Rb2 {[%clk 0:00:07]} 42. Rb8 {[%clk 0:00:03]}  a5 {[%clk 0:00:07]} 43. Rb5 {[%clk 0:00:03]}  a4 {[%clk 0:00:06]} 44. bxa4 {[%clk 0:00:04]}  Rxb5 {[%clk 0:00:07]} 45. axb5 {[%clk 0:00:05]}  Rf5 {[%clk 0:00:07]} 46. b6 {[%clk 0:00:04]}  Rb5 {[%clk 0:00:08]} 47. Be3 {[%clk 0:00:05]}  Ke5 {[%clk 0:00:08]} 48. Kf3 {[%clk 0:00:05]}  Rb3 {[%clk 0:00:07]} 49. g4 {[%clk 0:00:05]}  d5 {[%clk 0:00:08]} 50. Ke2 {[%clk 0:00:02]}  d4 {[%clk 0:00:08]} 51. Bd2 {[%clk 0:00:01]}  Rxb6 {[%clk 0:00:09]} 52. Kd3 {[%clk 0:00:02]}  Rb3+ {[%clk 0:00:09]} 53. Kc4 {[%clk 0:00:02]}  Rg3 {[%clk 0:00:09]} 54. g5 {[%clk 0:00:02]}  Ke4 {[%clk 0:00:09]} 55. Bc1 {[%clk 0:00:02]}  e5 {[%clk 0:00:10]} 56. Bd2 {[%clk 0:00:01]}  Rg2 {[%clk 0:00:10]} 57. Bb4 {[%clk 0:00:01]}  d3 {[%clk 0:00:10]} 58. Kb3 {[%clk 0:00:01]}  Rxg5 {[%clk 0:00:09]} 0-1


[Site "https://www.chess.com"]

[Event "Titled Tuesday Blitz February 15 Early 2022"]
[White "Zavivaeva, Emilia"]
[Black "Klyashtorny, Vladislav"]
[WhiteFideId "34127531"]
[BlackFideId "4170938"]
[WhiteElo "1685"]
[BlackElo "2380"]
[Result "0-1"]
[Round "06"]
[TimeControl "180+1"]
[Date "2022.02.15"]
[WhiteClock "0:00:01"]
[BlackClock "0:00:16"]

1. e4 {[%clk 0:02:59]}  e5 {[%clk 0:02:56]} 2. Nf3 {[%clk 0:02:58]}  Nc6 {[%clk 0:02:47]} 3. Nc3 {[%clk 0:02:57]}  Nf6 {[%clk 0:02:47]} 4. d4 {[%clk 0:02:57]}  exd4 {[%clk 0:02:46]} 5. Nxd4 {[%clk 0:02:55]}  Bb4 {[%clk 0:02:45]} 6. Nxc6 {[%clk 0:02:47]}  bxc6 {[%clk 0:02:42]} 7. Bd3 {[%clk 0:02:46]}  O-O {[%clk 0:02:41]} 8. O-O {[%clk 0:02:42]}  Re8 {[%clk 0:02:42]} 9. Bg5 {[%clk 0:02:38]}  h6 {[%clk 0:02:40]} 10. Bh4 {[%clk 0:02:37]}  g5 {[%clk 0:02:36]} 11. Bg3 {[%clk 0:02:36]}  Bxc3 {[%clk 0:02:36]} 12. bxc3 {[%clk 0:02:35]}  Nxe4 {[%clk 0:02:37]} 13. Qh5 {[%clk 0:02:34]}  Kg7 {[%clk 0:02:34]} 14. Rae1 {[%clk 0:02:27]}  Nf6 {[%clk 0:02:26]} 15. Qf3 {[%clk 0:02:18]}  d6 {[%clk 0:02:00]} 16. Qxc6 {[%clk 0:02:13]}  Bd7 {[%clk 0:02:00]} 17. Qf3 {[%clk 0:02:10]}  Rb8 {[%clk 0:01:57]} 18. c4 {[%clk 0:02:04]}  Bg4 {[%clk 0:01:42]} 19. Qc6 {[%clk 0:01:58]}  Rb6 {[%clk 0:01:28]} 20. Qa4 {[%clk 0:01:55]}  Rxe1 {[%clk 0:01:23]} 21. Rxe1 {[%clk 0:01:55]}  Qb8 {[%clk 0:01:23]} 22. c3 {[%clk 0:01:48]}  Rb2 {[%clk 0:01:05]} 23. c5 {[%clk 0:01:46]}  Rd2 {[%clk 0:00:47]} 24. Bc2 {[%clk 0:01:05]}  Qb2 {[%clk 0:00:45]} 25. Bb3 {[%clk 0:00:53]}  Qxc3 {[%clk 0:00:44]} 26. cxd6 {[%clk 0:00:49]}  cxd6 {[%clk 0:00:44]} 27. Qxa7 {[%clk 0:00:43]}  Bh5 {[%clk 0:00:31]} 28. h3 {[%clk 0:00:31]}  Rxa2 {[%clk 0:00:31]} 29. Bxa2 {[%clk 0:00:06]}  Qxe1+ {[%clk 0:00:31]} 30. Kh2 {[%clk 0:00:06]}  Ne4 {[%clk 0:00:28]} 31. Qd4+ {[%clk 0:00:05]}  Kg8 {[%clk 0:00:22]} 32. Bxd6 {[%clk 0:00:05]}  Nxf2 {[%clk 0:00:20]} 33. Qd5 {[%clk 0:00:02]}  Qh1+ {[%clk 0:00:16]} 34. Kg3 {[%clk 0:00:02]}  Qg1 {[%clk 0:00:17]} 35. Be5 {[%clk 0:00:01]}  Nh1# {[%clk 0:00:16]} 0-1


[Site "https://www.chess.com"]

[Event "Titled Tuesday Blitz February 15 Early 2022"]
[White "Aaditya Dhingra"]
[Black "Tregubov, Pavel V."]
[WhiteFideId "25678191"]
[BlackFideId "4115341"]
[WhiteElo "1789"]
[BlackElo "2341"]
[Result "1-0"]
[Round "07"]
[TimeControl "180+1"]
[Date "2022.02.15"]
[WhiteClock "0:00:04"]
[BlackClock "0:00:15"]

1. e4 {[%clk 0:03:00]}  c5 {[%clk 0:02:59]} 2. Nf3 {[%clk 0:03:00]}  e6 {[%clk 0:02:59]} 3. d4 {[%clk 0:03:00]}  cxd4 {[%clk 0:03:00]} 4. Nxd4 {[%clk 0:03:01]}  Nc6 {[%clk 0:03:00]} 5. Nb5 {[%clk 0:03:01]}  Nf6 {[%clk 0:02:45]} 6. N1c3 {[%clk 0:02:55]}  Bb4 {[%clk 0:02:45]} 7. Nd6+ {[%clk 0:02:53]}  Ke7 {[%clk 0:02:45]} 8. Bf4 {[%clk 0:02:35]}  e5 {[%clk 0:02:45]} 9. Nf5+ {[%clk 0:02:26]}  Kf8 {[%clk 0:02:45]} 10. Bg5 {[%clk 0:01:48]}  d5 {[%clk 0:02:45]} 11. exd5 {[%clk 0:01:31]}  Bxf5 {[%clk 0:02:43]} 12. dxc6 {[%clk 0:01:29]}  bxc6 {[%clk 0:02:39]} 13. Bd3 {[%clk 0:00:58]}  Bxd3 {[%clk 0:02:33]} 14. Qxd3 {[%clk 0:00:54]}  Qxd3 {[%clk 0:02:30]} 15. cxd3 {[%clk 0:00:53]}  Nd5 {[%clk 0:02:30]} 16. Bd2 {[%clk 0:00:51]}  Rb8 {[%clk 0:02:29]} 17. O-O-O {[%clk 0:00:48]}  f6 {[%clk 0:02:26]} 18. Ne4 {[%clk 0:00:40]}  Kf7 {[%clk 0:02:22]} 19. g3 {[%clk 0:00:31]}  Rhd8 {[%clk 0:02:11]} 20. a3 {[%clk 0:00:28]}  Be7 {[%clk 0:02:01]} 21. Ba5 {[%clk 0:00:26]}  Rd7 {[%clk 0:01:57]} 22. d4 {[%clk 0:00:19]}  f5 {[%clk 0:01:03]} 23. Nc3 {[%clk 0:00:15]}  e4 {[%clk 0:01:03]} 24. Ne2 {[%clk 0:00:13]}  Rb3 {[%clk 0:00:57]} 25. Kc2 {[%clk 0:00:11]}  Rdb7 {[%clk 0:00:54]} 26. Rb1 {[%clk 0:00:11]}  Rf3 {[%clk 0:00:50]} 27. Rhf1 {[%clk 0:00:10]}  e3 {[%clk 0:00:47]} 28. Be1 {[%clk 0:00:09]}  exf2 {[%clk 0:00:40]} 29. Rxf2 {[%clk 0:00:10]}  Rxf2 {[%clk 0:00:39]} 30. Bxf2 {[%clk 0:00:10]}  Bf6 {[%clk 0:00:38]} 31. Nc3 {[%clk 0:00:10]}  Re7 {[%clk 0:00:35]} 32. Nxd5 {[%clk 0:00:10]}  cxd5 {[%clk 0:00:35]} 33. Kd3 {[%clk 0:00:11]}  Rb7 {[%clk 0:00:27]} 34. b4 {[%clk 0:00:10]}  Rc7 {[%clk 0:00:25]} 35. Kd2 {[%clk 0:00:10]}  Rc4 {[%clk 0:00:26]} 36. Kd3 {[%clk 0:00:09]}  Ke6 {[%clk 0:00:25]} 37. a4 {[%clk 0:00:09]}  Kd7 {[%clk 0:00:25]} 38. a5 {[%clk 0:00:08]}  a6 {[%clk 0:00:25]} 39. b5 {[%clk 0:00:08]}  axb5 {[%clk 0:00:22]} 40. Rxb5 {[%clk 0:00:09]}  Ra4 {[%clk 0:00:20]} 41. Rxd5+ {[%clk 0:00:08]}  Ke6 {[%clk 0:00:21]} 42. Rb5 {[%clk 0:00:07]}  Ra2 {[%clk 0:00:21]} 43. Be3 {[%clk 0:00:06]}  Rxh2 {[%clk 0:00:20]} 44. Rb6+ {[%clk 0:00:06]}  Kf7 {[%clk 0:00:20]} 45. a6 {[%clk 0:00:06]}  Ra2 {[%clk 0:00:19]} 46. Rb7+ {[%clk 0:00:06]}  Kg6 {[%clk 0:00:19]} 47. a7 {[%clk 0:00:06]}  h5 {[%clk 0:00:19]} 48. d5 {[%clk 0:00:06]}  Be5 {[%clk 0:00:19]} 49. Rb8 {[%clk 0:00:06]}  Bxg3 {[%clk 0:00:15]} 50. a8=Q {[%clk 0:00:05]}  Rxa8 {[%clk 0:00:16]} 51. Rxa8 {[%clk 0:00:06]}  h4 {[%clk 0:00:16]} 52. Ke2 {[%clk 0:00:06]}  h3 {[%clk 0:00:16]} 53. Kf3 {[%clk 0:00:06]}  Be5 {[%clk 0:00:16]} 54. Rh8 {[%clk 0:00:05]}  h2 {[%clk 0:00:15]} 55. Bf4 {[%clk 0:00:05]}  Kf6 {[%clk 0:00:15]} 56. Rxh2 {[%clk 0:00:04]} 1-0


[Site "https://www.chess.com"]

[Event "Titled Tuesday Blitz February 15 Early 2022"]
[White "Al Mukhaini, Shima"]
[Black "Ambartsumova, Karina"]
[WhiteFideId "22005854"]
[BlackFideId "4166299"]
[WhiteElo "2405"]
[BlackElo "2262"]
[Result "1-0"]
[Round "07"]
[TimeControl "180+1"]
[Date "2022.02.15"]
[WhiteClock "0:00:15"]
[BlackClock "0:00:02"]

1. d4 {[%clk 0:02:08]}  Nf6 {[%clk 0:02:59]} 2. c4 {[%clk 0:02:04]}  e6 {[%clk 0:02:59]} 3. Nc3 {[%clk 0:01:53]}  d5 {[%clk 0:03:00]} 4. e3 {[%clk 0:01:41]}  Bb4 {[%clk 0:02:52]} 5. Bd2 {[%clk 0:01:41]}  O-O {[%clk 0:02:49]} 6. a3 {[%clk 0:01:41]}  Be7 {[%clk 0:02:47]} 7. Nf3 {[%clk 0:01:41]}  c5 {[%clk 0:02:45]} 8. cxd5 {[%clk 0:01:40]}  cxd4 {[%clk 0:02:37]} 9. Nxd4 {[%clk 0:01:39]}  Nxd5 {[%clk 0:02:35]} 10. Nxd5 {[%clk 0:01:39]}  Qxd5 {[%clk 0:02:35]} 11. Bc3 {[%clk 0:01:39]}  a6 {[%clk 0:02:06]} 12. Be2 {[%clk 0:01:37]}  Nc6 {[%clk 0:02:04]} 13. Bf3 {[%clk 0:01:37]}  Qc4 {[%clk 0:01:30]} 14. Nxc6 {[%clk 0:01:28]}  bxc6 {[%clk 0:01:29]} 15. Rc1 {[%clk 0:01:29]}  Rd8 {[%clk 0:01:11]} 16. Qe2 {[%clk 0:01:24]}  Qxe2+ {[%clk 0:01:11]} 17. Kxe2 {[%clk 0:01:25]}  Bb7 {[%clk 0:01:09]} 18. Ba5 {[%clk 0:01:18]}  Rd7 {[%clk 0:00:58]} 19. Bxc6 {[%clk 0:01:09]}  Bxc6 {[%clk 0:00:59]} 20. Rxc6 {[%clk 0:01:09]}  Bf6 {[%clk 0:00:58]} 21. Bc3 {[%clk 0:01:05]}  Bxc3 {[%clk 0:00:56]} 22. Rxc3 {[%clk 0:01:05]}  Kf8 {[%clk 0:00:55]} 23. Rd1 {[%clk 0:01:04]}  Ke7 {[%clk 0:00:54]} 24. Rxd7+ {[%clk 0:01:02]}  Kxd7 {[%clk 0:00:55]} 25. Kd3 {[%clk 0:00:58]}  Rb8 {[%clk 0:00:54]} 26. b4 {[%clk 0:00:58]}  h5 {[%clk 0:00:48]} 27. Kc4 {[%clk 0:00:57]}  Rb5 {[%clk 0:00:38]} 28. a4 {[%clk 0:00:54]}  Rg5 {[%clk 0:00:38]} 29. g3 {[%clk 0:00:53]}  h4 {[%clk 0:00:37]} 30. b5 {[%clk 0:00:46]}  axb5+ {[%clk 0:00:37]} 31. axb5 {[%clk 0:00:46]}  hxg3 {[%clk 0:00:37]} 32. hxg3 {[%clk 0:00:46]}  Kc7 {[%clk 0:00:38]} 33. Kb4+ {[%clk 0:00:39]}  Kb7 {[%clk 0:00:38]} 34. Rd3 {[%clk 0:00:38]}  Rf5 {[%clk 0:00:36]} 35. f4 {[%clk 0:00:36]}  Kb6 {[%clk 0:00:26]} 36. Rd6+ {[%clk 0:00:35]}  Kc7 {[%clk 0:00:26]} 37. Rc6+ {[%clk 0:00:36]}  Kb7 {[%clk 0:00:27]} 38. Ka5 {[%clk 0:00:36]}  g5 {[%clk 0:00:22]} 39. Rd6 {[%clk 0:00:33]}  gxf4 {[%clk 0:00:21]} 40. gxf4 {[%clk 0:00:32]}  Kc7 {[%clk 0:00:13]} 41. Rd3 {[%clk 0:00:30]}  Rh5 {[%clk 0:00:09]} 42. Ka6 {[%clk 0:00:27]}  Rc5 {[%clk 0:00:02]} 43. b6+ {[%clk 0:00:23]}  Kc6 {[%clk 0:00:01]} 44. b7 {[%clk 0:00:20]}  Rc1 {[%clk 0:00:02]} 45. Ra3 {[%clk 0:00:15]} 1-0


[Site "https://www.chess.com"]

[Event "Titled Tuesday Blitz February 15 Early 2022"]
[White "Balint, Vilmos"]
[Black "Cherniaiev, Tykhon"]
[WhiteFideId "718050"]
[BlackFideId "14182360"]
[WhiteElo "2059"]
[BlackElo "2289"]
[Result "0-1"]
[Round "07"]
[TimeControl "180+1"]
[Date "2022.02.15"]
[WhiteClock "0:01:48"]
[BlackClock "0:01:40"]

1. d4 {[%clk 0:03:00]}  Nf6 {[%clk 0:02:56]} 2. Nc3 {[%clk 0:03:00]}  d5 {[%clk 0:02:56]} 3. Bf4 {[%clk 0:03:00]}  e6 {[%clk 0:02:56]} 4. Qd2 {[%clk 0:02:56]}  a6 {[%clk 0:02:54]} 5. a3 {[%clk 0:02:56]}  c5 {[%clk 0:02:54]} 6. e3 {[%clk 0:02:56]}  cxd4 {[%clk 0:02:54]} 7. exd4 {[%clk 0:02:56]}  Nc6 {[%clk 0:02:55]} 8. Nf3 {[%clk 0:02:54]}  Bd6 {[%clk 0:02:53]} 9. O-O-O {[%clk 0:02:45]}  b5 {[%clk 0:02:49]} 10. Na2 {[%clk 0:02:12]}  Ne4 {[%clk 0:02:48]} 11. Qe3 {[%clk 0:02:08]}  Bxf4 {[%clk 0:02:28]} 12. Qxf4 {[%clk 0:02:08]}  Nxf2 {[%clk 0:02:26]} 13. Ng5 {[%clk 0:02:08]}  Qf6 {[%clk 0:02:26]} 14. Qd6 {[%clk 0:02:02]}  Qxg5+ {[%clk 0:02:21]} 15. Kb1 {[%clk 0:02:02]}  Bd7 {[%clk 0:02:19]} 16. Bd3 {[%clk 0:01:56]}  Qe7 {[%clk 0:02:07]} 17. Qg3 {[%clk 0:01:53]}  Nxh1 {[%clk 0:02:04]} 18. Qxg7 {[%clk 0:01:53]}  O-O-O {[%clk 0:02:03]} 19. Rxh1 {[%clk 0:01:53]}  Rhg8 {[%clk 0:02:02]} 20. Qh6 {[%clk 0:01:53]}  Rxg2 {[%clk 0:02:02]} 21. a4 {[%clk 0:01:54]}  Nb4 {[%clk 0:01:45]} 22. Nxb4 {[%clk 0:01:49]}  Qxb4 {[%clk 0:01:46]} 23. axb5 {[%clk 0:01:48]}  Bxb5 {[%clk 0:01:45]} 24. Qxh7 {[%clk 0:01:48]}  Bxd3 {[%clk 0:01:40]} 25. Qxd3 {[%clk 0:01:48]}  Qc4 {[%clk 0:01:40]} 0-1


[Site "https://www.chess.com"]

[Event "Titled Tuesday Blitz February 15 Early 2022"]
[White "Bhagwat, Vinod"]
[Black "Kraus, Tomas"]
[WhiteFideId "5005949"]
[BlackFideId "331708"]
[WhiteElo "2115"]
[BlackElo "2389"]
[Result "1-0"]
[Round "07"]
[TimeControl "180+1"]
[Date "2022.02.15"]
[WhiteClock "0:00:06"]
[BlackClock "0:00:01"]

1. d4 {[%clk 0:03:00]}  Nf6 {[%clk 0:02:58]} 2. c4 {[%clk 0:03:00]}  c5 {[%clk 0:02:57]} 3. d5 {[%clk 0:03:00]}  e6 {[%clk 0:02:57]} 4. Nc3 {[%clk 0:02:59]}  exd5 {[%clk 0:02:57]} 5. cxd5 {[%clk 0:03:00]}  d6 {[%clk 0:02:58]} 6. Nf3 {[%clk 0:03:00]}  g6 {[%clk 0:02:58]} 7. h3 {[%clk 0:03:01]}  Bg7 {[%clk 0:02:59]} 8. e4 {[%clk 0:03:01]}  O-O {[%clk 0:02:59]} 9. Bd3 {[%clk 0:03:02]}  a6 {[%clk 0:02:57]} 10. O-O {[%clk 0:03:00]}  b5 {[%clk 0:02:57]} 11. a3 {[%clk 0:03:01]}  Re8 {[%clk 0:02:55]} 12. Re1 {[%clk 0:03:01]}  Nbd7 {[%clk 0:02:54]} 13. Bg5 {[%clk 0:03:00]}  Qc7 {[%clk 0:02:53]} 14. Rc1 {[%clk 0:02:59]}  h6 {[%clk 0:02:48]} 15. Bf4 {[%clk 0:02:57]}  Bb7 {[%clk 0:02:32]} 16. Bxb5 {[%clk 0:02:52]}  axb5 {[%clk 0:02:27]} 17. Nxb5 {[%clk 0:02:51]}  Qb6 {[%clk 0:02:24]} 18. Nxd6 {[%clk 0:02:43]}  Red8 {[%clk 0:02:14]} 19. Nxb7 {[%clk 0:02:14]}  Qxb7 {[%clk 0:02:13]} 20. Qd2 {[%clk 0:02:13]}  Kh7 {[%clk 0:02:09]} 21. Qc2 {[%clk 0:01:54]}  Nh5 {[%clk 0:02:01]} 22. Be3 {[%clk 0:01:51]}  Qxb2 {[%clk 0:02:00]} 23. Bxc5 {[%clk 0:01:43]}  Nxc5 {[%clk 0:01:45]} 24. Qxc5 {[%clk 0:01:42]}  Qxa3 {[%clk 0:01:44]} 25. Qxa3 {[%clk 0:01:38]}  Rxa3 {[%clk 0:01:45]} 26. Rc7 {[%clk 0:01:37]}  Kg8 {[%clk 0:01:38]} 27. Rec1 {[%clk 0:01:30]}  Nf4 {[%clk 0:01:21]} 28. Rc8 {[%clk 0:01:25]}  Ra8 {[%clk 0:00:49]} 29. Rxd8+ {[%clk 0:01:22]}  Rxd8 {[%clk 0:00:50]} 30. Kh2 {[%clk 0:01:19]}  f5 {[%clk 0:00:47]} 31. exf5 {[%clk 0:01:13]}  gxf5 {[%clk 0:00:41]} 32. g3 {[%clk 0:01:11]}  Nd3 {[%clk 0:00:34]} 33. Rc2 {[%clk 0:01:05]}  Rxd5 {[%clk 0:00:32]} 34. Rd2 {[%clk 0:01:04]}  Nb4 {[%clk 0:00:29]} 35. Rxd5 {[%clk 0:01:02]}  Nxd5 {[%clk 0:00:30]} 36. Nh4 {[%clk 0:01:00]}  Ne7 {[%clk 0:00:30]} 37. g4 {[%clk 0:00:56]}  Be5+ {[%clk 0:00:30]} 38. Kg2 {[%clk 0:00:55]}  f4 {[%clk 0:00:30]} 39. Kf3 {[%clk 0:00:55]}  Kf7 {[%clk 0:00:31]} 40. Ke4 {[%clk 0:00:54]}  Ke6 {[%clk 0:00:31]} 41. Ng2 {[%clk 0:00:48]}  Nd5 {[%clk 0:00:27]} 42. h4 {[%clk 0:00:45]}  Nf6+ {[%clk 0:00:27]} 43. Kf3 {[%clk 0:00:44]}  Nd5 {[%clk 0:00:21]} 44. Ke4 {[%clk 0:00:39]}  Nc3+ {[%clk 0:00:15]} 45. Kf3 {[%clk 0:00:39]}  Nd1 {[%clk 0:00:14]} 46. h5 {[%clk 0:00:18]}  Kf6 {[%clk 0:00:11]} 47. Nh4 {[%clk 0:00:13]}  Kg5 {[%clk 0:00:11]} 48. Nf5 {[%clk 0:00:13]}  Nc3 {[%clk 0:00:03]} 49. Ne7 {[%clk 0:00:11]}  Nb5 {[%clk 0:00:02]} 50. Nd5 {[%clk 0:00:09]}  Nd4+ {[%clk 0:00:02]} 51. Ke4 {[%clk 0:00:09]}  Bg7 {[%clk 0:00:03]} 52. f3 {[%clk 0:00:08]}  Ne2 {[%clk 0:00:01]} 53. Nc7 {[%clk 0:00:06]} 1-0


[Site "https://www.chess.com"]

[Event "Titled Tuesday Blitz February 15 Early 2022"]
[White "Budrewicz, Krzysztof"]
[Black "Corrales Jimenez, Fidel"]
[WhiteFideId "1127950"]
[BlackFideId "3506690"]
[WhiteElo "2580"]
[BlackElo "2807"]
[Result "0-1"]
[Round "07"]
[TimeControl "180+1"]
[Date "2022.02.15"]
[WhiteClock "0:00:51"]
[BlackClock "0:01:15"]

1. d4 {[%clk 0:03:00]}  Nf6 {[%clk 0:02:59]} 2. c4 {[%clk 0:03:00]}  g6 {[%clk 0:02:59]} 3. Nc3 {[%clk 0:03:00]}  d5 {[%clk 0:03:00]} 4. h4 {[%clk 0:02:55]}  c5 {[%clk 0:02:58]} 5. cxd5 {[%clk 0:02:52]}  Nxd5 {[%clk 0:02:55]} 6. e3 {[%clk 0:02:39]}  Nc6 {[%clk 0:02:51]} 7. h5 {[%clk 0:02:30]}  cxd4 {[%clk 0:02:49]} 8. exd4 {[%clk 0:02:30]}  Bg7 {[%clk 0:02:47]} 9. Nf3 {[%clk 0:02:26]}  Bg4 {[%clk 0:02:45]} 10. Be2 {[%clk 0:02:26]}  O-O {[%clk 0:02:42]} 11. hxg6 {[%clk 0:02:24]}  hxg6 {[%clk 0:02:42]} 12. Bh6 {[%clk 0:02:22]}  Bxh6 {[%clk 0:02:13]} 13. Rxh6 {[%clk 0:02:23]}  Nf4 {[%clk 0:02:14]} 14. d5 {[%clk 0:02:07]}  Bxf3 {[%clk 0:02:04]} 15. Bxf3 {[%clk 0:02:01]}  Ne5 {[%clk 0:02:02]} 16. Kf1 {[%clk 0:01:47]}  Qb6 {[%clk 0:01:53]} 17. Qd2 {[%clk 0:01:42]}  Nfd3 {[%clk 0:01:34]} 18. Rb1 {[%clk 0:01:29]}  Kg7 {[%clk 0:01:31]} 19. Rh3 {[%clk 0:01:29]}  Rh8 {[%clk 0:01:30]} 20. Rxh8 {[%clk 0:01:21]}  Rxh8 {[%clk 0:01:31]} 21. Kg1 {[%clk 0:01:21]}  Nxf2 {[%clk 0:01:18]} 22. Na4 {[%clk 0:00:51]}  Rh1# {[%clk 0:01:15]} 0-1


[Site "https://www.chess.com"]